lending/lending_fUSD_20241214
["ID","MTS","AMOUNT","RATE_DAILY","PERIOD"]
[345321634,1734148349490,-998.64,0.00021198,3]
[345321635,1734148349499,-500.0,0.00021199,3]
[345321636,1734148349508,-998.64,0.00021199,3]
[345321637,1734148349517,-546.3,0.00021249,3]
[345321638,1734148349527,-547.46,0.00021249,3]
[345321639,1734148349536,-546.3,0.00021249,3]
[345321640,1734148349546,-547.46,0.00021249,3]
[345321641,1734148349555,-546.3,0.00021249,3]
[345321642,1734148349564,-547.46,0.00021249,3]
[345321643,1734148349574,-546.3,0.00021249,3]
[345321644,1734148349583,-162.57415667,0.00021249,3]
[345321645,1734148349594,-384.88584333,0.00021249,3]
[345321646,1734148349603,-546.3,0.00021249,3]
[345321647,1734148349612,-547.46,0.00021249,3]
[345321648,1734148349621,-547.46,0.00021249,3]
[345321649,1734148349632,-500.0,0.00021249,3]
[345321650,1734148349641,-546.3,0.00021249,3]
[345321651,1734148349650,-500.0,0.00021249,3]
[345321652,1734148349659,-547.46,0.00021249,3]
[345321653,1734148349668,-500.0,0.00021249,3]
[345321654,1734148349680,-547.46,0.00021249,3]
[345321655,1734148349689,-546.3,0.00021249,3]
[345321656,1734148349698,-500.0,0.00021249,3]
[345321657,1734148349708,-547.46,0.00021249,3]
[345321658,1734148349717,-547.46,0.00021249,3]
[345321659,1734148349727,-500.0,0.00021249,3]
[345321660,1734148349736,-546.46,0.00021249,3]
[345321661,1734148349745,-547.46,0.00021249,3]
[345321662,1734148349754,-500.0,0.00021249,3]
[345321663,1734148349764,-529.02678117,0.0002125,2]
[345321664,1734148349775,-10127.0,0.0002125,2]
[345321665,1734148349788,-8699.27866792,0.0002125,2]
[345321667,1734148357479,153.59,0.00010137,2]
[345321668,1734149142117,-206.88973782,0.00014224,2]
[345321669,1734149142136,-1617.21813421,0.00014281,7]
[345321670,1734149142156,-809.53478572,0.00014281,7]
[345321671,1734149234134,-374.29944176,0.00014281,7]
[345321672,1734149237093,-3383.59998974,0.00014281,7]
[345321673,1734149237115,-150.0,0.00014423,2]
[345321674,1734149237136,-1401.63092196,0.00014424,2]
[345321675,1734149242103,-4592.47952974,0.00014424,2]
[345321676,1734149246099,-2293.71442707,0.00014424,2]
[345321677,1734149252654,260.95,0.00010137,2]
[345321679,1734149350085,-466.25710608,0.00014323,2]
[345321680,1734149350106,-150.0,0.00014423,2]
[345321681,1734149350126,-2964.17512123,0.00014424,2]
[345321682,1734149350330,-5625.0,0.00014424,2]
[345321683,1734149350350,-5625.0,0.00014424,2]
[345321684,1734149350370,-5625.0,0.00014424,2]
[345321685,1734149350390,-3657.34446902,0.00014424,2]
[345321686,1734149357079,-1967.65553098,0.00014424,2]
[345321687,1734149357128,2362.28826902,0.00014324,2]
[345321688,1734149358079,-2479.8340452,0.00014324,2]
[345321689,1734149359102,-155.26953052,0.00014324,2]
[345321690,1734149359123,-119.70875008,0.00016813,2]
[345321691,1734149360113,-141.24124992,0.00016813,2]
[345321692,1734149360133,-28.55540009,0.00017098,2]
[345321700,1734149432432,-138.50659991,0.00017098,2]
[345321701,1734149432442,-466.25710606,0.00017304,2]
[345321702,1734149432451,-395.63429403,0.00017381,2]
[345321703,1734149432462,-114.06570597,0.00017381,2]
[345321704,1734149432471,-500.0,0.00017414,2]
[345321705,1734149432481,-489.49142878,0.00017414,2]
[345321706,1734149432491,-10.50857122,0.00017414,2]
[345321707,1734149432501,-1103.71019043,0.00017453,2]
[345321708,1734149432510,-500.0,0.0001851,2]
[345321709,1734149432520,-153.59,0.00018594,2]
[345321710,1734149432529,-200.0,0.00019233,2]
[345321711,1734149432538,-280.74,0.00019237,2]
[345321712,1734149432548,-250.0,0.00019246,2]
[345321713,1734149432558,-250.0,0.00019251,2]
[345321714,1734149432570,-159.65,0.00019301,2]
[345321715,1734149432580,-166.1,0.00019307,2]
[345321716,1734149432590,-2608.02,0.00019308,2]
[345321717,1734149432599,-999.9,0.00019345,2]
[345321718,1734149432608,-300.0,0.0001935,2]
[345321719,1734149432618,-1000.0,0.00019351,2]
[345321720,1734149432627,-1000.0,0.00019375,2]
[345321721,1734149432636,-829.06,0.00019388,2]
[345321722,1734149432646,-2179.85,0.00019453,2]
[345321723,1734149432655,-152.0,0.00019582,3]
[345321724,1734149432665,-500.0,0.00019606,2]
[345321725,1734149432674,-500.0,0.00019606,2]
[345321726,1734149432683,-165.95,0.00019628,30]
[345321727,1734149432696,-509.7,0.00019645,2]
[345321728,1734149432705,-676.88,0.00019754,2]
[345321730,1734149432714,-250.0,0.00019786,2]
[345321732,1734149432724,-167.34,0.00019823,2]
[345321734,1734149432734,-150.43641336,0.00019973,2]
[345321736,1734149432743,-150.43641337,0.00019973,2]
[345321738,1734149432752,-351.01829785,0.00019973,2]
[345321740,1734149432761,-175.50914893,0.00019973,2]
[345321742,1734149432770,-159.65,0.00020015,2]
[345321744,1734149432780,-251.936744,0.00020016,2]
[345321746,1734149432789,-999.9,0.00020061,2]
[345321748,1734149432799,-351.01829785,0.00020082,2]
[345321750,1734149432809,-175.50914893,0.00020082,2]
[345321752,1734149432818,-150.43641336,0.00020164,2]
[345321754,1734149432827,-150.43641337,0.00020164,2]
[345321756,1734149432837,-351.01829785,0.00020164,2]
[345321757,1734149432846,-175.50914893,0.00020164,2]
[345321758,1734149432855,-291.99,0.0002019,2]
[345321759,1734149432865,-280.74,0.00020199,2]
[345321760,1734149432875,-422.15,0.000202,2]
[345321761,1734149432884,-351.01829785,0.00020274,2]
[345321762,1734149432894,-175.50914893,0.00020274,2]
[345321763,1734149432903,-466.25710606,0.00020284,2]
[345321764,1734149432913,-150.43641336,0.00020329,2]
[345321765,1734149432922,-150.43641337,0.00020329,2]
[345321766,1734149432931,-351.01829785,0.00020384,2]
[345321767,1734149432941,-175.50914893,0.00020384,2]
[345321768,1734149432951,-351.01829785,0.00020466,2]
[345321769,1734149432961,-175.50914893,0.00020466,2]
[345321770,1734149432971,-11682.0,0.00020469,2]
[345321771,1734149432980,-150.43641336,0.00020521,2]
[345321772,1734149432990,-150.43641337,0.00020521,2]
[345321773,1734149432999,-351.01829785,0.00020575,2]
[345321774,1734149433009,-175.50914893,0.00020575,2]
[345321775,1734149433018,-732.88,0.00020575,2]
[345321776,1734149433027,-351.01829785,0.00020658,2]
[345321777,1734149433037,-175.50914893,0.00020658,2]
[345321778,1734149433047,-150.43641336,0.00020685,2]
[345321779,1734149433057,-150.43641337,0.00020685,2]
[345321780,1734149433066,-500.0,0.00020702,2]
[345321781,1734149433077,-159.65,0.00020729,2]
[345321782,1734149433086,-351.01829785,0.00020767,2]
[345321783,1734149433097,-175.50914893,0.00020767,2]
[345321784,1734149433106,-999.9,0.00020777,2]
[345321785,1734149433116,-3880.0,0.00020835,2]
[345321786,1734149433125,-13732.0,0.00020835,2]
[345321787,1734149433135,-150.0,0.00020835,2]
[345321788,1734149433145,-1168.0,0.00020835,2]
[345321789,1734149433154,-351.01829785,0.00020849,2]
[345321790,1734149433164,-175.50914893,0.00020849,2]
[345321791,1734149433173,-150.43641336,0.00020877,2]
[345321792,1734149433183,-150.43641337,0.00020877,2]
[345321793,1734149433193,-74035.80294332,0.00020892,2]
[345321794,1734149433210,-7100.97017086,0.00020892,2]
[345321795,1734149433219,-637.3614007,0.00020893,2]
[345321796,1734149433227,-2997.46241208,0.00020895,2]
[345321797,1734149433237,-500.0,0.000209,2]
[345321798,1734149433247,-29132.08242311,0.00020902,2]
[345321799,1734149433258,-17650.88446999,0.00020902,2]
[345321800,1734149433269,-280.57633589,0.00020902,2]
[345321801,1734149433284,-29470.93237574,0.00020902,2]
[345321802,1734149433295,-4602.29750945,0.00020902,2]
[345321803,1734149433305,-2997.46241208,0.00020906,2]
[345321804,1734149433315,-637.3614007,0.0002091,2]
[345321805,1734149433326,-2997.46241208,0.00020912,2]
[345321806,1734149433335,-5468.30302684,0.00020917,2]
[345321812,1734149438099,-1099.0,0.00020835,2]
[345321814,1734149438109,-3356.4899702,0.00020917,2]
[345321817,1734149438120,-3591.27347008,0.00020917,2]
[345321818,1734149438206,-2267.38113228,0.00020917,2]
[345321819,1734149438217,-10212.0832,0.00020917,2]
[345321820,1734149438314,-56241.24231478,0.00020917,2]
[345321821,1734149438323,-81136.77311418,0.00020919,2]
[345321822,1734149438332,-637.3614007,0.00020926,2]
[345321823,1734149438341,-2997.46241208,0.0002093,2]
[345321824,1734149438351,-2997.46241208,0.00020931,2]
[345321825,1734149438360,-637.3614007,0.00020931,2]
[345321826,1734149438370,-637.3614007,0.00020932,2]
[345321827,1734149438379,-637.3614007,0.00020932,2]
[345321828,1734149438388,-81136.77311418,0.00020941,2]
[345321829,1734149438398,-81136.77311418,0.00020941,2]
[345321830,1734149438407,-2997.46241208,0.00020948,2]
[345321831,1734149438416,-4502.5949,0.0002095,2]
[345321832,1734149438425,-616.6837,0.0002095,2]
[345321833,1734149438435,-179.5844,0.0002095,2]
[345321834,1734149438444,-351.01829785,0.00020959,2]
[345321835,1734149438453,-175.50914893,0.00020959,2]
[345321836,1734149438463,-165.63595329,0.00020973,2]
[345321837,1734149438473,-344.41239926,0.0002098,2]
[345321838,1734149438482,-512.3846,0.00020995,2]
[345321839,1734149438492,-2449.2033,0.00020995,2]
[345321840,1734149438501,-165.63595324,0.00020995,2]
[345321841,1734149438510,-1000.0,0.00021,2]
[345321842,1734149438519,-165.63595324,0.00021017,2]
[345321843,1734149438529,-168.88,0.00021037,2]
[345321845,1734149438538,-165.63595324,0.00021039,2]
[345321846,1734149438547,-3000.0,0.0002104,2]
[345321847,1734149438557,-150.43641336,0.00021041,2]
[345321848,1734149438568,-150.43641337,0.00021041,2]
[345321849,1734149438577,-351.01829785,0.00021041,2]
[345321850,1734149438586,-175.50914893,0.00021041,2]
[345321851,1734149438595,-99515.10438733,0.00021047,2]
[345321852,1734149438605,-165.63595324,0.00021062,2]
[345321853,1734149438614,-500.0,0.00021073,2]
[345321854,1734149438623,-500.7528023,0.00021073,2]
[345321855,1734149438632,-200.0,0.0002108,2]
[345321856,1734149438642,-165.63595324,0.00021084,2]
[345321857,1734149438651,-420.0,0.00021084,2]
[345321858,1734149438661,-107555.3156197,0.00021094,3]
[345321859,1734149438671,-7595.59254037,0.00021094,2]
[345321860,1734149438680,-500.0,0.00021095,3]
[345321861,1734149438689,-588.17953798,0.00021095,3]
[345321862,1734149438703,-502.67551077,0.00021095,3]
[345321863,1734149438713,-502.31691244,0.00021095,3]
[345321864,1734149438723,-500.0,0.00021095,3]
[345321865,1734149438732,-579.9597411,0.00021095,3]
[345321866,1734149438742,-500.0,0.00021095,3]
[345321867,1734149438752,-503.89705651,0.00021095,3]
[345321868,1734149438761,-500.0,0.00021095,3]
[345321869,1734149438771,-500.0,0.00021095,3]
[345321871,1734149438781,-500.0,0.00021095,3]
[345321872,1734149438791,-507.96372042,0.00021095,3]
[345321873,1734149438800,-505.47730732,0.00021095,3]
[345321874,1734149438810,-501.92389562,0.00021095,3]
[345321875,1734149438820,-500.0,0.00021095,3]
[345321876,1734149438830,-500.0,0.00021095,3]
[345321877,1734149438840,-500.0,0.00021095,3]
[345321878,1734149438849,-424.11,0.00021095,3]
[345321879,1734149438859,-500.0,0.00021095,3]
[345321880,1734149438868,-500.0,0.00021095,3]
[345321881,1734149438878,-500.0,0.00021095,3]
[345321882,1734149438887,-445.20101648,0.00021095,3]
[345321883,1734149438896,-435.80739899,0.00021095,3]
[345321884,1734149438906,-505.20390814,0.00021095,3]
[345321885,1734149438915,-500.52525341,0.00021095,3]
[345321886,1734149438925,-500.0,0.00021095,3]
[345321887,1734149438934,-334.6590184,0.00021095,3]
[345321888,1734149438943,-501.596755,0.00021095,3]
[345321889,1734149438953,-508.40680388,0.00021095,3]
[345321890,1734149438962,-619.24161251,0.00021095,3]
[345321891,1734149438973,-504.6981757,0.00021095,3]
[345321892,1734149438984,-500.0,0.00021095,3]
[345321893,1734149438995,-503.46401028,0.00021095,3]
[345321894,1734149439005,-507.38796481,0.00021095,3]
[345321895,1734149439014,-498.90076614,0.00021095,3]
[345321896,1734149439023,-500.0,0.00021095,3]
[345321897,1734149439033,-156.83397185,0.00021095,3]
[345321898,1734149439042,-500.0,0.00021095,3]
[345321899,1734149439052,-500.0,0.00021095,3]
[345321900,1734149439063,-500.0,0.00021095,3]
[345321901,1734149439075,-338.61848374,0.00021095,3]
[345321902,1734149439085,-500.0,0.00021095,3]
[345321903,1734149439095,-500.0,0.00021095,3]
[345321904,1734149439105,-500.0,0.00021095,3]
[345321905,1734149439115,-500.0,0.00021095,3]
[345321906,1734149439125,-500.0,0.00021095,3]
[345321907,1734149439134,-500.0,0.00021095,3]
[345321908,1734149439143,-500.0,0.00021095,3]
[345321909,1734149439152,-500.0,0.00021095,3]
[345321910,1734149439161,-500.0,0.00021095,3]
[345321911,1734149439170,-500.0,0.00021095,3]
[345321912,1734149439180,-500.0,0.00021095,3]
[345321913,1734149439189,-500.0,0.00021095,3]
[345321914,1734149439198,-990.06,0.00021095,3]
[345321915,1734149439208,-990.06,0.00021095,3]
[345321916,1734149439217,-990.06,0.00021095,3]
[345321917,1734149439226,-990.06,0.00021095,3]
[345321918,1734149439235,-990.06,0.00021095,3]
[345321919,1734149439245,-500.0,0.00021095,3]
[345321920,1734149439255,-500.0,0.00021095,3]
[345321921,1734149439265,-500.0,0.00021095,3]
[345321922,1734149439275,-500.0,0.00021095,3]
[345321923,1734149439285,-500.0,0.00021095,3]
[345321924,1734149439294,-500.0,0.00021095,3]
[345321925,1734149439303,-500.0,0.00021095,3]
[345321926,1734149439314,-500.0,0.00021095,3]
[345321927,1734149439323,-166.44,0.00021095,3]
[345321928,1734149439333,-500.0,0.00021095,3]
[345321929,1734149439342,-500.0,0.00021095,3]
[345321930,1734149439352,-500.0,0.00021095,3]
[345321931,1734149439361,-500.0,0.00021095,3]
[345321932,1734149439371,-500.0,0.00021095,3]
[345321933,1734149439380,-156.52394765,0.00021095,3]
[345321934,1734149439389,-500.0,0.00021095,3]
[345321935,1734149439398,-500.0,0.00021095,3]
[345321936,1734149439407,-500.0,0.00021095,3]
[345321937,1734149439417,-500.0,0.00021095,3]
[345321938,1734149439426,-500.0,0.00021095,3]
[345321939,1734149439435,-500.0,0.00021095,3]
[345321940,1734149439444,-500.0,0.00021095,3]
[345321941,1734149439454,-500.0,0.00021095,3]
[345321942,1734149439463,-508.4458205,0.00021095,3]
[345321943,1734149439472,-500.0,0.00021095,3]
[345321944,1734149439482,-510.26940827,0.00021095,3]
[345321945,1734149439491,-500.0,0.00021095,3]
[345321946,1734149439502,-500.0,0.00021095,3]
[345321947,1734149439511,-500.0,0.00021095,3]
[345321948,1734149439521,-500.0,0.00021095,3]
[345321949,1734149439531,-500.0,0.00021095,3]
[345321950,1734149439540,-500.0,0.00021095,3]
[345321951,1734149439549,-500.0,0.00021095,3]
[345321952,1734149439561,-500.0,0.00021095,3]
[345321953,1734149439570,-528.0818,0.00021095,3]
[345321954,1734149439580,-500.0,0.00021095,3]
[345321955,1734149439589,-500.0,0.00021095,3]
[345321956,1734149439598,-500.0,0.00021095,3]
[345321957,1734149439608,-500.0,0.00021095,3]
[345321958,1734149439617,-500.0,0.00021095,3]
[345321959,1734149439627,-500.0,0.00021095,3]
[345321960,1734149439636,-500.0,0.00021095,3]
[345321961,1734149439646,-500.0,0.00021095,3]
[345321962,1734149439655,-500.0,0.00021095,3]
[345321963,1734149439664,-532.44,0.00021095,3]
[345321964,1734149439674,-532.44,0.00021095,3]
[345321965,1734149439683,-532.44,0.00021095,3]
[345321966,1734149439695,-532.44,0.00021095,3]
[345321967,1734149439706,-500.0,0.00021095,3]
[345321968,1734149439716,-1030.75,0.00021095,3]
[345321969,1734149439726,-1030.75,0.00021095,3]
[345321970,1734149439735,-1030.75,0.00021095,3]
[345321971,1734149439745,-1030.75,0.00021095,3]
[345321972,1734149439755,-1030.75,0.00021095,3]
[345321973,1734149439764,-500.0,0.00021095,3]
[345321974,1734149439775,-500.0,0.00021095,3]
[345321975,1734149439785,-500.0,0.00021095,3]
[345321976,1734149439795,-500.0,0.00021095,3]
[345321977,1734149439804,-500.0,0.00021095,3]
[345321978,1734149439815,-382.7,0.00021095,3]
[345321979,1734149439825,-500.0,0.00021095,3]
[345321980,1734149439834,-500.0,0.00021095,3]
[345321981,1734149439844,-500.0,0.00021095,3]
[345321982,1734149439853,-500.0,0.00021095,3]
[345321983,1734149439863,-508.00703904,0.00021095,3]
[345321984,1734149439873,-500.0,0.00021095,3]
[345321985,1734149439882,-500.0,0.00021095,3]
[345321986,1734149439892,-500.0,0.00021095,3]
[345321987,1734149439901,-511.14189492,0.00021095,3]
[345321988,1734149439911,-500.0,0.00021095,3]
[345321989,1734149439920,-500.0,0.00021095,3]
[345321990,1734149439929,-500.0,0.00021095,3]
[345321991,1734149439939,-500.0,0.00021095,3]
[345321992,1734149439948,-500.0,0.00021095,3]
[345321993,1734149439958,-377.25205399,0.00021095,3]
[345321994,1734149439968,-500.0,0.00021095,3]
[345321995,1734149439979,-500.0,0.00021095,3]
[345321996,1734149439989,-500.0,0.00021095,3]
[345321997,1734149439998,-631.91216737,0.00021095,3]
[345321998,1734149440008,-500.0,0.00021095,3]
[345321999,1734149440017,-500.0,0.00021095,3]
[345322000,1734149440027,-503.58563795,0.00021095,3]
[345322001,1734149440036,-500.0,0.00021095,3]
[345322002,1734149440045,-500.0,0.00021095,3]
[345322003,1734149440055,-500.0,0.00021095,3]
[345322004,1734149440068,-500.0,0.00021095,3]
[345322005,1734149440078,-500.0,0.00021095,3]
[345322006,1734149440088,-500.0,0.00021095,3]
[345322007,1734149440097,-500.0,0.00021095,3]
[345322010,1734149440107,-500.0,0.00021095,3]
[345322012,1734149440116,-616.39703468,0.00021095,3]
[345322013,1734149440125,-500.0,0.00021095,3]
[345322014,1734149440135,-500.0,0.00021095,3]
[345322015,1734149440144,-500.0,0.00021095,3]
[345322016,1734149440153,-211.29,0.00021095,3]
[345322017,1734149440163,-512.80873316,0.00021095,3]
[345322018,1734149440173,-500.0,0.00021095,3]
[345322019,1734149440183,-500.0,0.00021095,3]
[345322020,1734149440192,-235.52,0.00021095,3]
[345322021,1734149440204,-500.0,0.00021095,3]
[345322022,1734149440218,-500.0,0.00021095,3]
[345322023,1734149440231,-500.0,0.00021095,3]
[345322024,1734149440241,-500.0,0.00021095,3]
[345322025,1734149440251,-500.0,0.00021095,3]
[345322026,1734149440261,-500.0,0.00021095,3]
[345322027,1734149440271,-500.0,0.00021095,3]
[345322028,1734149440280,-500.0,0.00021095,3]
[345322029,1734149440290,-500.0,0.00021095,3]
[345322030,1734149440299,-500.0,0.00021095,3]
[345322031,1734149440314,-500.0,0.00021095,3]
[345322032,1734149440323,-500.0,0.00021095,3]
[345322033,1734149440332,-500.0,0.00021095,3]
[345322034,1734149440342,-500.0,0.00021095,3]
[345322035,1734149440354,-500.0,0.00021095,3]
[345322036,1734149440366,-500.0,0.00021095,3]
[345322037,1734149440375,-500.0,0.00021095,3]
[345322038,1734149440384,-500.0,0.00021095,3]
[345322039,1734149440395,-500.0,0.00021095,3]
[345322040,1734149440404,-500.0,0.00021095,3]
[345322041,1734149440414,-500.0,0.00021095,3]
[345322042,1734149440423,-500.0,0.00021095,3]
[345322043,1734149440433,-500.0,0.00021095,3]
[345322044,1734149440443,-500.0,0.00021095,3]
[345322045,1734149440452,-500.0,0.00021095,3]
[345322046,1734149440463,-533.32,0.00021095,3]
[345322047,1734149440472,-675.42,0.00021095,3]
[345322048,1734149440482,-675.42,0.00021095,3]
[345322049,1734149440491,-675.42,0.00021095,3]
[345322050,1734149440500,-500.0,0.00021095,3]
[345322051,1734149440510,-675.42,0.00021095,3]
[345322052,1734149440519,-500.0,0.00021095,3]
[345322053,1734149440528,-500.0,0.00021095,3]
[345322054,1734149440537,-500.0,0.00021095,3]
[345322055,1734149440547,-500.0,0.00021095,3]
[345322056,1734149440556,-500.0,0.00021095,3]
[345322057,1734149440566,-500.0,0.00021095,3]
[345322058,1734149440575,-500.0,0.00021095,3]
[345322059,1734149440584,-500.0,0.00021095,3]
[345322060,1734149440594,-500.0,0.00021095,3]
[345322061,1734149440603,-500.0,0.00021095,3]
[345322062,1734149440612,-500.0,0.00021095,3]
[345322063,1734149440621,-500.0,0.00021095,3]
[345322064,1734149440630,-500.0,0.00021095,3]
[345322065,1734149440639,-500.0,0.00021095,3]
[345322066,1734149440648,-500.0,0.00021095,3]
[345322067,1734149440657,-500.0,0.00021095,3]
[345322068,1734149440666,-500.0,0.00021095,3]
[345322069,1734149440675,-500.0,0.00021095,3]
[345322070,1734149440684,-500.0,0.00021095,3]
[345322071,1734149440693,-500.0,0.00021095,3]
[345322072,1734149440706,-500.0,0.00021095,3]
[345322073,1734149440715,-500.0,0.00021095,3]
[345322074,1734149440724,-500.0,0.00021095,3]
[345322075,1734149440733,-500.0,0.00021095,3]
[345322076,1734149440742,-500.0,0.00021095,3]
[345322077,1734149440751,-500.0,0.00021095,3]
[345322078,1734149440760,-500.0,0.00021095,3]
[345322079,1734149440769,-653.52,0.00021095,3]
[345322080,1734149440779,-653.52,0.00021095,3]
[345322081,1734149440789,-653.52,0.00021095,3]
[345322082,1734149440798,-653.52,0.00021095,3]
[345322083,1734149440807,-653.52,0.00021095,3]
[345322084,1734149440817,-602.0,0.00021095,3]
[345322085,1734149440826,-602.0,0.00021095,3]
[345322086,1734149440835,-602.0,0.00021095,3]
[345322087,1734149440844,-602.0,0.00021095,3]
[345322088,1734149440853,-500.0,0.00021095,3]
[345322089,1734149440862,-500.0,0.00021095,3]
[345322090,1734149440872,-500.0,0.00021095,3]
[345322091,1734149440880,-500.0,0.00021095,3]
[345322092,1734149440889,-322.1707912,0.00021095,3]
[345322093,1734149440899,-500.0,0.00021095,3]
[345322094,1734149440908,-500.0,0.00021095,3]
[345322095,1734149440916,-500.0,0.00021095,3]
[345322096,1734149440925,-500.0,0.00021095,3]
[345322097,1734149440934,-500.0,0.00021095,3]
[345322098,1734149440943,-500.0,0.00021095,3]
[345322099,1734149440952,-500.0,0.00021095,3]
[345322100,1734149440961,-426.68276088,0.00021095,3]
[345322101,1734149440971,-500.0,0.00021095,3]
[345322102,1734149440980,-500.0,0.00021095,3]
[345322103,1734149440990,-500.0,0.00021095,3]
[345322104,1734149440999,-500.0,0.00021095,3]
[345322105,1734149441008,-500.0,0.00021095,3]
[345322106,1734149441017,-500.0,0.00021095,3]
[345322107,1734149441026,-568.38,0.00021095,3]
[345322108,1734149441035,-500.0,0.00021095,3]
[345322109,1734149441044,-500.0,0.00021095,3]
[345322110,1734149441053,-500.0,0.00021095,3]
[345322111,1734149441063,-500.0,0.00021095,3]
[345322112,1734149441072,-500.0,0.00021095,3]
[345322113,1734149441081,-500.0,0.00021095,2]
[345322114,1734149441091,-436.05282158,0.00021095,2]
[345322115,1734149441100,-500.0,0.00021095,3]
[345322116,1734149441109,-500.0,0.00021095,3]
[345322117,1734149441118,-500.0,0.00021095,3]
[345322118,1734149441128,-500.0,0.00021095,3]
[345322119,1734149441137,-500.0,0.00021095,3]
[345322120,1734149441146,-500.0,0.00021095,3]
[345322121,1734149441155,-500.0,0.00021095,3]
[345322122,1734149441164,-500.0,0.00021095,3]
[345322123,1734149441173,-500.0,0.00021095,3]
[345322124,1734149441182,-500.0,0.00021095,3]
[345322125,1734149441191,-500.0,0.00021095,3]
[345322126,1734149441200,-500.0,0.00021095,3]
[345322127,1734149441209,-615.16,0.00021095,3]
[345322128,1734149441219,-615.16,0.00021095,3]
[345322129,1734149441228,-615.16,0.00021095,3]
[345322130,1734149441237,-615.16,0.00021095,3]
[345322131,1734149441246,-500.0,0.00021095,3]
[345322132,1734149441255,-513.00645502,0.00021095,3]
[345322133,1734149441264,-501.79569608,0.00021095,3]
[345322134,1734149441273,-372.11114736,0.00021095,3]
[345322135,1734149441283,-500.0,0.00021095,3]
[345322136,1734149441292,-500.0,0.00021095,3]
[345322137,1734149441301,-540.54,0.00021095,3]
[345322138,1734149441311,-500.0,0.00021095,3]
[345322139,1734149441320,-540.54,0.00021095,3]
[345322140,1734149441329,-500.0,0.00021095,3]
[345322141,1734149441339,-540.54,0.00021095,3]
[345322142,1734149441348,-540.54,0.00021095,3]
[345322143,1734149441358,-540.54,0.00021095,3]
[345322144,1734149441368,-500.0,0.00021095,3]
[345322145,1734149441378,-500.0,0.00021095,3]
[345322146,1734149441387,-500.0,0.00021095,3]
[345322147,1734149441396,-500.0,0.00021095,3]
[345322148,1734149441405,-500.0,0.00021095,3]
[345322149,1734149441414,-500.0,0.00021095,3]
[345322150,1734149441423,-381.68,0.00021095,3]
[345322151,1734149441432,-507.26,0.00021095,3]
[345322152,1734149441441,-507.26,0.00021095,3]
[345322153,1734149441451,-507.26,0.00021095,3]
[345322154,1734149441460,-507.26,0.00021095,3]
[345322155,1734149441469,-507.26,0.00021095,3]
[345322156,1734149441479,-540.3450019,0.00021095,3]
[345322157,1734149441488,-500.0,0.00021095,3]
[345322158,1734149441497,-500.0,0.00021095,3]
[345322159,1734149441507,-500.0,0.00021095,3]
[345322160,1734149441515,-500.0,0.00021095,3]
[345322161,1734149441525,-500.0,0.00021095,3]
[345322162,1734149441534,-500.0,0.00021095,3]
[345322163,1734149441543,-500.0,0.00021095,3]
[345322164,1734149441552,-500.0,0.00021095,3]
[345322165,1734149441562,-500.0,0.00021095,3]
[345322166,1734149441572,-500.0,0.00021095,3]
[345322167,1734149441581,-530.68,0.00021095,3]
[345322168,1734149441591,-500.0,0.00021095,3]
[345322169,1734149441600,-500.0,0.00021095,3]